fUSD/lending_fUSD_20240822
["ID","MTS","AMOUNT","RATE_DAILY","PERIOD"]
[335571914,1724337073055,-2863.74,0.00010999,2]
[335571916,1724337073064,-2863.74,0.00010999,2]
[335571918,1724337073073,-2863.74,0.00010999,2]
[335571920,1724337073083,-2863.74,0.00010999,2]
[335571922,1724337073092,-2863.74,0.00010999,2]
[335571924,1724337073102,-2863.74,0.00010999,2]
[335571926,1724337073113,-2863.74,0.00010999,2]
[335571928,1724337073124,-2863.74,0.00010999,2]
[335571930,1724337073134,-2863.74,0.00010999,2]
[335571932,1724337073144,-2863.74,0.00010999,2]
[335571934,1724337073154,-2863.74,0.00010999,2]
[335571936,1724337073167,-2863.74,0.00010999,2]
[335571938,1724337073177,-2863.74,0.00010999,2]
[335571940,1724337073186,-2863.74,0.00010999,2]
[335571942,1724337073196,-2863.74,0.00010999,2]
[335571944,1724337073206,-2863.74,0.00010999,2]
[335571946,1724337073215,-2863.74,0.00010999,2]
[335571957,1724337073312,-2863.74,0.00010999,2]
[335571959,1724337073322,-2863.74,0.00010999,2]
[335571961,1724337073332,-2863.74,0.00010999,2]
[335571963,1724337073343,-2863.74,0.00010999,2]
[335571965,1724337073352,-500.0,0.00010999,2]
[335571967,1724337073362,-500.0,0.00010999,2]
[335571969,1724337073371,-2863.74,0.00010999,2]
[335571971,1724337073381,-500.0,0.00010999,2]
[335571973,1724337073391,-2863.74,0.00010999,2]
[335571975,1724337073401,-500.0,0.00010999,2]
[335571977,1724337073412,-2863.79348313,0.00010999,2]
[335571979,1724337073422,-207.59,0.00010999,2]
[335571982,1724337073432,-500.0,0.00010999,2]
[335571984,1724337073442,-500.0,0.00010999,2]
[335571986,1724337073452,-636.0,0.00010999,2]
[335571988,1724337073461,-500.0,0.00010999,2]
[335571990,1724337073471,-551.6,0.00010999,2]
[335571992,1724337073480,-563.95,0.00010999,2]
[335571994,1724337073489,-563.95,0.00010999,2]
[335571996,1724337073499,-563.95,0.00010999,2]
[335571998,1724337073511,-563.95,0.00010999,2]
[335572000,1724337073520,-563.95,0.00010999,2]
[335572001,1724337073530,-563.95,0.00010999,2]
[335572004,1724337073539,-563.95,0.00010999,2]
[335572005,1724337073549,-500.0,0.00010999,2]
[335572007,1724337073558,-563.95,0.00010999,2]
[335572009,1724337073568,-500.0,0.00010999,2]
[335572011,1724337073579,-563.95,0.00010999,2]
[335572013,1724337073588,-500.0,0.00010999,2]
[335572015,1724337073597,-563.95,0.00010999,2]
[335572017,1724337073607,-500.0,0.00010999,2]
[335572019,1724337073617,-500.0,0.00010999,2]
[335572021,1724337073626,-563.95,0.00010999,2]
[335572023,1724337073636,-500.0,0.00010999,2]
[335572025,1724337073645,-563.95,0.00010999,2]
[335572026,1724337073655,-500.0,0.00010999,2]
[335572028,1724337073664,-563.95,0.00010999,2]
[335572030,1724337073674,-563.95,0.00010999,2]
[335572032,1724337073683,-365.15,0.00010999,2]
[335572034,1724337073692,-563.95,0.00010999,2]
[335572036,1724337073701,-563.95,0.00010999,2]
[335572038,1724337073711,-563.95,0.00010999,2]
[335572040,1724337073720,-563.95,0.00010999,2]
[335572042,1724337073730,-563.95,0.00010999,2]
[335572044,1724337073740,-563.95,0.00010999,2]
[335572046,1724337073749,-563.95,0.00010999,2]
[335572048,1724337073762,-563.95,0.00010999,2]
[335572049,1724337073771,-563.95,0.00010999,2]
[335572051,1724337073781,-564.04,0.00010999,2]
[335572053,1724337073791,-2776.63,0.00010999,2]
[335572055,1724337073800,-2776.63,0.00010999,2]
[335572057,1724337073809,-2776.63,0.00010999,2]
[335572059,1724337073819,-2776.63,0.00010999,2]
[335572061,1724337073828,-2776.63,0.00010999,2]
[335572063,1724337073838,-2776.63,0.00010999,2]
[335572065,1724337073848,-2776.63,0.00010999,2]
[335572067,1724337073857,-2776.63,0.00010999,2]
[335572069,1724337073866,-2776.63,0.00010999,2]
[335572071,1724337073876,-2776.63,0.00010999,2]
[335572073,1724337073886,-2776.63,0.00010999,2]
[335572075,1724337073895,-2776.63,0.00010999,2]
[335572077,1724337073904,-2776.63,0.00010999,2]
[335572079,1724337073913,-2776.63,0.00010999,2]
[335572081,1724337073923,-2776.63,0.00010999,2]
[335572083,1724337073932,-2776.63,0.00010999,2]
[335572085,1724337073942,-2776.63,0.00010999,2]
[335572087,1724337073952,-2776.63,0.00010999,2]
[335572089,1724337073962,-2776.63,0.00010999,2]
[335572091,1724337073970,-2776.63,0.00010999,2]
[335572093,1724337073980,-2776.63,0.00010999,2]
[335572095,1724337073989,-2776.63,0.00010999,2]
[335572097,1724337073998,-2776.63,0.00010999,2]
[335572099,1724337074010,-2776.81997021,0.00010999,2]
[335572101,1724337074019,-500.0,0.00010999,2]
[335572103,1724337074028,-595.85,0.00010999,2]
[335572105,1724337074037,-2893.92,0.00010999,2]
[335572106,1724337074046,-2893.92,0.00010999,2]
[335572108,1724337074055,-2893.92,0.00010999,2]
[335572109,1724337074064,-2893.92,0.00010999,2]
[335572110,1724337074073,-2893.92,0.00010999,2]
[335572111,1724337074083,-2893.92,0.00010999,2]
[335572112,1724337074091,-2893.92,0.00010999,2]
[335572113,1724337074101,-2893.92,0.00010999,2]
[335572114,1724337074110,-2893.92,0.00010999,2]
[335572115,1724337074119,-2893.92,0.00010999,2]
[335572116,1724337074128,-2893.92,0.00010999,2]
[335572117,1724337074137,-2893.92,0.00010999,2]
[335572118,1724337074146,-2893.92,0.00010999,2]
[335572119,1724337074156,-2893.92,0.00010999,2]
[335572120,1724337074169,-2893.92,0.00010999,2]
[335572121,1724337074179,-2893.92,0.00010999,2]
[335572123,1724337074188,-2893.92,0.00010999,2]
[335572124,1724337074198,-2893.92,0.00010999,2]
[335572126,1724337074208,-2893.92,0.00010999,2]
[335572128,1724337074218,-2893.92,0.00010999,2]
[335572130,1724337074228,-2893.92,0.00010999,2]
[335572132,1724337074238,-2893.92,0.00010999,2]
[335572134,1724337074248,-2893.92,0.00010999,2]
[335572136,1724337074260,-2893.92045853,0.00010999,2]
[335572138,1724337074269,-1753.99,0.00010999,2]
[335572140,1724337074279,-806.58,0.00010999,2]
[335572142,1724337074288,-806.58,0.00010999,2]
[335572143,1724337074297,-806.58,0.00010999,2]
[335572145,1724337074307,-806.58,0.00010999,2]
[335572147,1724337074316,-806.58,0.00010999,2]
[335572149,1724337074325,-806.58,0.00010999,2]
[335572151,1724337074335,-806.58,0.00010999,2]
[335572153,1724337074344,-806.58,0.00010999,2]
[335572155,1724337074353,-806.58,0.00010999,2]
[335572157,1724337074363,-806.58,0.00010999,2]
[335572159,1724337074372,-806.58,0.00010999,2]
[335572161,1724337074382,-806.7,0.00010999,2]
[335572163,1724337074392,-500.0,0.00010999,2]
[335572165,1724337074401,-500.0,0.00010999,2]
[335572166,1724337074411,-500.0,0.00010999,2]
[335572168,1724337074420,-500.0,0.00010999,2]
[335572170,1724337074429,-500.0,0.00010999,2]
[335572172,1724337074439,-500.0,0.00010999,2]
[335572174,1724337074449,-500.0,0.00010999,2]
[335572176,1724337074458,-500.0,0.00010999,2]
[335572178,1724337074467,-500.0,0.00010999,2]
[335572180,1724337074477,-500.0,0.00010999,2]
[335572182,1724337074486,-500.0,0.00010999,2]
[335572183,1724337074495,-500.0,0.00010999,2]
[335572185,1724337074508,-500.0,0.00010999,2]
[335572187,1724337074518,-500.0,0.00010999,2]
[335572189,1724337074527,-500.0,0.00010999,2]
[335572191,1724337074536,-500.0,0.00010999,2]
[335572193,1724337074546,-500.0,0.00010999,2]
[335572195,1724337074555,-500.0,0.00010999,2]
[335572197,1724337074564,-500.0,0.00010999,2]
[335572199,1724337074575,-500.0,0.00010999,2]
[335572201,1724337074584,-500.0,0.00010999,2]
[335572203,1724337074594,-500.0,0.00010999,2]
[335572205,1724337074604,-500.0,0.00010999,2]
[335572207,1724337074613,-500.0,0.00010999,2]
[335572209,1724337074622,-500.0,0.00010999,2]
[335572211,1724337074632,-500.0,0.00010999,2]
[335572213,1724337074641,-500.0,0.00010999,2]
[335572215,1724337074650,-500.0,0.00010999,2]
[335572217,1724337074660,-500.0,0.00010999,2]
[335572219,1724337074670,-500.0,0.00010999,2]
[335572221,1724337074679,-500.0,0.00010999,2]
[335572223,1724337074689,-500.0,0.00010999,2]
[335572225,1724337074698,-500.0,0.00010999,2]
[335572235,1724337074708,-500.0,0.00010999,2]
[335572237,1724337074801,-500.0,0.00010999,2]
[335572239,1724337074811,-566.06,0.00010999,2]
[335572241,1724337074821,-500.0,0.00010999,2]
[335572243,1724337074831,-500.0,0.00010999,2]
[335572245,1724337074840,-500.0,0.00010999,2]
[335572246,1724337074849,-500.0,0.00010999,2]
[335572248,1724337074859,-329.62,0.00010999,2]
[335572250,1724337074869,-1261.68372608,0.00011,2]
[335572252,1724337074879,-2613989.14494727,0.00011,2]
[335572254,1724337074888,-2091441.11742834,0.00011,2]
[335572256,1724337074898,-5375050.92525244,0.00011,2]
[335572258,1724337074907,-5781375.98980018,0.00011,2]
[335572306,1724337075367,-267.54232,0.00011,2]
[335572314,1724337075441,155.0,0.00024499,60]
[335572325,1724337075539,-212.20182364,0.00010862,2]
[335572327,1724337075549,-457.38154945,0.00010899,2]
[335572329,1724337075560,-458.17940101,0.00010899,2]
[335572331,1724337075569,-488.03459756,0.00011,2]
[335572334,1724337075586,-150.0,0.00010996,2]
[335572336,1724337075595,-117.42272386,0.00011,2]
[335573650,1724337090138,159.09689809,0.00013332,60]
[335576517,1724337121710,-313.09401486,9.909e-05,2]
[335576518,1724337122580,-146.51838514,9.909e-05,2]
[335576519,1724337122619,-200.0,9.938e-05,2]
[335576520,1724337146965,327.05,8.219e-05,2]
[335576521,1724337269346,331.30309931,0.00027,120]
[335576522,1724337291996,331.30309931,0.00027,120]
[335576523,1724337297824,331.30309931,0.00027,120]
[335576524,1724337303055,331.30309931,0.00027,120]
[335576525,1724337303122,469.12397188,0.0002,120]
[335576526,1724337549042,380.15590157,9.919e-05,2]
[335576527,1724337590428,3082.77962872,9.8e-05,3]
[335576528,1724337673269,172.0,0.000178,120]
[335576529,1724337673777,172.0,0.0001779,120]
[335576530,1724337674247,172.0,0.0001778,120]
[335576531,1724337674733,172.0,0.000178,120]
[335576532,1724337675192,172.0,0.0001779,120]
[335576533,1724337675683,172.0,0.0001778,120]
[335576534,1724337676174,172.0,0.000178,120]
[335576535,1724337676643,172.0,0.0001779,120]
[335576536,1724337677123,172.0,0.000178,120]
[335576537,1724337677602,180.19,0.0001779,120]
[335576538,1724337682983,325.34,8.219e-05,2]
[335576543,1724337881636,3829.6703,9.813e-05,2]
[335576546,1724337918916,10000.0,0.00027,120]
[335576549,1724338006272,2049.02,9.89e-05,2]
[335576550,1724338051019,330.4044326,9.899e-05,2]
[335576551,1724338059809,160.0,9.892e-05,2]
[335576552,1724338062425,297.76769109,9.899e-05,2]
[335576555,1724338103638,23880.0,9.897e-05,2]
[335576557,1724338125858,156.11170356,9.899e-05,2]
[335576559,1724338165928,-616.58777371,9.913e-05,2]
[335576561,1724338186191,340.63,8.219e-05,2]
[335576790,1724338231482,-223.41222629,9.913e-05,2]
[335576791,1724338231491,-70.02590244,9.913e-05,2]
[335576792,1724338231504,-132.19409756,9.913e-05,2]
[335576793,1724338231513,-1023.53240079,0.0001,2]
[335576794,1724338231525,-1205.17313737,0.0001,2]
[335576795,1724338231535,-1050.0,0.0001,2]
[335576796,1724338231544,-1328.87565327,0.0001,2]
[335576797,1724338231554,-171.52,0.00010393,2]
[335576798,1724338231563,-340.63,0.00010471,2]
[335576799,1724338231575,-298.82691546,0.00010471,2]
[335576800,1724338231588,-180.83512,0.00010585,2]
[335576801,1724338231597,-200.0,0.00010674,2]
[335576802,1724338231606,-1739.40578979,0.00010699,2]
[335576803,1724338231616,-155.11186015,0.00010699,2]
[335576804,1724338231625,-356.9,0.000107,2]
[335576805,1724338231634,-499.99,0.000107,2]
[335576806,1724338231643,-1302.75348877,0.00010713,2]
[335576807,1724338231654,-531.53,0.00010764,2]
[335576808,1724338231664,-531.53,0.00010764,2]
[335576809,1724338231674,-150.0,0.00010788,2]
[335576810,1724338231683,-500.0,0.00010789,2]
[335576811,1724338231692,-500.0,0.00010789,2]
[335576812,1724338231701,-500.0,0.00010789,2]
[335576813,1724338231710,-500.0,0.00010789,2]
[335576814,1724338231719,-500.0,0.00010789,2]
[335576815,1724338231728,-500.0,0.00010789,2]
[335576816,1724338231737,-500.0,0.00010789,2]
[335576818,1724338231747,-500.0,0.00010789,2]
[335576819,1724338231756,-500.0,0.00010789,2]
[335576820,1724338231765,-262.87781265,0.00010789,2]
[335576821,1724338231774,-500.0,0.00010789,2]
[335576822,1724338231783,-500.0,0.00010789,2]
[335576823,1724338231792,-522.77768153,0.00010789,2]
[335576824,1724338231801,-500.0,0.00010789,2]
[335576825,1724338231812,-500.0,0.00010789,2]
[335576826,1724338231821,-500.0,0.00010789,2]
[335576827,1724338231830,-500.0,0.00010789,2]
[335576828,1724338231839,-500.0,0.00010789,2]
[335576829,1724338231849,-500.0,0.00010789,2]
[335576830,1724338231858,-500.0,0.00010789,2]
[335576831,1724338231867,-223.14231847,0.00010789,2]
[335576832,1724338231877,-500.0,0.00010789,2]
[335576833,1724338231887,-500.0,0.00010789,2]
[335576834,1724338231896,-500.0,0.00010789,2]
[335576835,1724338231905,-500.0,0.00010789,2]
[335576836,1724338231915,-500.0,0.00010789,2]
[335576838,1724338231924,-500.0,0.00010789,2]
[335576839,1724338231933,-500.0,0.00010789,2]
[335576840,1724338231942,-500.0,0.00010789,2]
[335576842,1724338231951,-500.0,0.00010789,2]
[335576843,1724338231960,-260.32726029,0.00010789,2]
[335576844,1724338231969,-446.24330595,0.00010789,2]
[335576845,1724338231978,-500.0,0.00010789,2]
[335576846,1724338231987,-500.0,0.00010789,2]
[335576847,1724338231996,-167.84281995,0.00010789,2]
[335576848,1724338232005,-356.9,0.000108,2]
[335576849,1724338232014,-155.94399844,0.000108,2]
[335576850,1724338232023,-531.53,0.000108,2]
[335576851,1724338232032,-356.9,0.0001085,2]
[335576852,1724338232041,-204.07791985,0.00010852,2]
[335576853,1724338232051,-236.11042651,0.00010852,2]
[335576854,1724338232061,-163.98879285,0.00010861,2]
[335576855,1724338232070,-4759.72204788,0.00010888,2]
[335576856,1724338232079,-295.03427055,0.00010888,2]
[335576857,1724338232088,-182.21413592,0.00010888,2]
[335576858,1724338232097,-197.35523019,0.00010888,2]
[335576859,1724338232106,-155.59382276,0.00010888,2]
[335576860,1724338232115,-2727.13378422,0.00010889,2]
[335576861,1724338232124,-623.0,0.0001089,2]
[335576862,1724338232133,-1258.0,0.0001089,2]
[335576863,1724338232142,-1923.0,0.0001089,2]
[335576864,1724338232151,-1544.0,0.0001089,2]
[335576865,1724338232161,-150.0,0.0001089,2]
[335576866,1724338232170,-556.0,0.0001089,2]
[335576867,1724338232179,-447.0,0.0001089,2]
[335576868,1724338232188,-1126.0,0.0001089,2]
[335576869,1724338232197,-810.0,0.0001089,2]
[335576870,1724338232206,-1897.0,0.0001089,2]
[335576871,1724338232215,-552.0,0.0001089,2]
[335576872,1724338232224,-150.0,0.0001089,2]
[335576873,1724338232233,-3319.0,0.0001089,2]
[335576874,1724338232242,-1158.0,0.0001089,2]
[335576875,1724338232251,-248.0,0.0001089,2]
[335576876,1724338232260,-764.0,0.0001089,2]
[335576877,1724338232269,-3606.084,0.0001089,2]
[335576878,1724338232278,-1674.0,0.0001089,2]
[335576879,1724338232287,-150.0,0.0001089,2]
[335576880,1724338232296,-1205.0,0.0001089,2]
[335576881,1724338232306,-1910.03696891,0.0001089,2]
[335576882,1724338232316,-457.41198,0.0001089,2]
[335576883,1724338232326,-155.73723165,0.0001089,2]
[335576884,1724338232335,-155.1137372,0.0001089,2]
[335576885,1724338232345,-170.91910338,0.0001089,2]
[335576886,1724338232354,-155.0,0.0001089,2]
[335576887,1724338232363,-164.34661823,0.0001089,2]
[335576888,1724338232372,-166.67179762,0.0001089,2]
[335576889,1724338232382,-357.41882144,0.0001089,2]
[335576890,1724338232392,-155.21641346,0.0001089,2]
[335576891,1724338232401,-835.2933,0.00010899,2]
[335576892,1724338232412,-320.7457,0.00010899,2]
[335576893,1724338232422,-159.57347377,0.00010899,2]
[335576894,1724338232431,-603.02423257,0.00010899,2]
[335576895,1724338232440,-198.75344655,0.00010899,2]
[335576896,1724338232449,-155.0,0.00010899,2]
[335576897,1724338232458,-155.0,0.00010899,2]
[335576898,1724338232468,-1734.11330452,0.00010899,2]
[335576899,1724338232478,-1734.11330452,0.00010899,2]
[335576900,1724338232487,-1734.11330452,0.000109,2]
[335576901,1724338232496,-1734.11330452,0.000109,2]
[335576902,1724338232505,-3110.4897,0.000109,2]
[335576903,1724338232514,-1734.11330452,0.000109,2]
[335576904,1724338232523,-1734.11330452,0.000109,2]
[335576905,1724338232533,-3081.23388496,0.000109,2]
[335576906,1724338232543,-1734.11330452,0.000109,2]
[335576907,1724338232552,-2630.41,0.000109,2]
[335576908,1724338232562,-1428.0,0.000109,2]
[335576909,1724338232572,-3183.79878464,0.000109,2]
[335576910,1724338232584,-157.38124,0.00010949,2]
[335576911,1724338232594,-523.39091194,0.00010949,2]
[335576912,1724338232603,-169.91283276,0.00010949,2]
[335576913,1724338232612,-161.81,0.00010959,2]
[335576914,1724338232622,-250.0,0.00010959,2]
[335576915,1724338232631,-2000.0,0.00010959,2]
[335576916,1724338232640,-158.653,0.00010972,2]
[335576917,1724338232651,-155.73660267,0.00010979,2]
[335576918,1724338232662,-156.966318,0.00010993,2]
[335576919,1724338232672,-500.0,0.00010997,2]
[335576920,1724338232682,-500.0,0.00010997,2]
[335576921,1724338232691,-500.0,0.00010997,2]
[335576922,1724338232702,-500.0,0.00010997,2]
[335576923,1724338232711,-500.0,0.00010997,2]
[335576924,1724338232721,-500.0,0.00010997,2]
[335576925,1724338232731,-2870.03501766,0.00010997,2]
[335576926,1724338232740,-500.0,0.00010998,2]
[335576927,1724338232749,-500.0,0.00010998,2]
[335576928,1724338232759,-500.0,0.00010998,2]
[335576929,1724338232768,-500.0,0.00010998,2]
[335576930,1724338232777,-241.64,0.00010998,2]
[335576931,1724338232786,-500.0,0.00010998,2]
[335576932,1724338232796,-500.0,0.00010998,2]
[335576933,1724338232805,-500.0,0.00010998,2]
[335576934,1724338232815,-500.0,0.00010998,2]
[335576935,1724338232824,-500.0,0.00010998,2]
[335576936,1724338232834,-272.77,0.00010998,2]
[335576937,1724338232844,-500.0,0.00010998,2]
[335576938,1724338232853,-500.0,0.00010998,2]
[335576939,1724338232862,-158.5,0.00010998,2]
[335576940,1724338232872,-500.0,0.00010998,2]
[335576941,1724338232881,-500.0,0.00010998,2]
[335576942,1724338232891,-500.0,0.00010998,2]
[335576943,1724338232900,-500.0,0.00010998,2]
[335576944,1724338232910,-500.0,0.00010998,2]
[335576945,1724338232919,-500.0,0.00010998,2]
[335576946,1724338232929,-500.0,0.00010998,2]
[335576947,1724338232938,-500.0,0.00010998,2]
[335576948,1724338232947,-500.0,0.00010998,2]
[335576949,1724338232957,-263.98,0.00010998,2]
[335576950,1724338232966,-500.0,0.00010999,2]
[335576951,1724338232975,-500.0,0.00010999,2]
[335576952,1724338232985,-500.0,0.00010999,2]
[335576953,1724338232994,-500.0,0.00010999,2]
[335576954,1724338233003,-500.0,0.00010999,2]
[335576955,1724338233012,-500.0,0.00010999,2]
[335576956,1724338233022,-500.0,0.00010999,2]
[335576957,1724338233031,-500.0,0.00010999,2]
[335576958,1724338233040,-500.0,0.00010999,2]
[335576959,1724338233050,-500.0,0.00010999,2]
[335576960,1724338233059,-500.0,0.00010999,2]
[335576961,1724338233069,-500.0,0.00010999,2]
[335576962,1724338233078,-500.0,0.00010999,2]
[335576963,1724338233087,-500.0,0.00010999,2]
[335576964,1724338233096,-500.0,0.00010999,2]
[335576965,1724338233106,-500.0,0.00010999,2]
[335576966,1724338233115,-500.0,0.00010999,2]
[335576967,1724338233125,-500.0,0.00010999,2]
[335576968,1724338233134,-500.0,0.00010999,2]
[335576969,1724338233144,-500.0,0.00010999,2]
[335576970,1724338233153,-579.23,0.00010999,2]
[335576971,1724338233163,-500.0,0.00010999,2]
[335576972,1724338233173,-500.0,0.00010999,2]
[335576973,1724338233182,-500.0,0.00010999,2]
[335576974,1724338233192,-500.0,0.00010999,2]
[335576975,1724338233201,-500.0,0.00010999,2]
[335576976,1724338233211,-500.0,0.00010999,2]
[335576977,1724338233220,-500.0,0.00010999,2]
[335576978,1724338233229,-500.0,0.00010999,2]
[335576979,1724338233239,-500.0,0.00010999,2]
[335576980,1724338233248,-500.0,0.00010999,2]
[335576981,1724338233258,-500.0,0.00010999,2]
[335576982,1724338233268,-500.0,0.00010999,2]
[335576983,1724338233277,-500.0,0.00010999,2]
[335576984,1724338233434,-500.0,0.00010999,2]
[335576985,1724338233444,-500.0,0.00010999,2]
[335576986,1724338233454,-500.0,0.00010999,2]
[335576987,1724338233464,-500.0,0.00010999,2]
[335576988,1724338233474,-204.41688206,0.00010999,2]
[335576989,1724338233484,-500.0,0.00010999,2]
[335576990,1724338233493,-500.0,0.00010999,2]
[335576991,1724338233503,-500.0,0.00010999,2]
[335576992,1724338233512,-500.0,0.00010999,2]
[335576993,1724338233522,-436.89,0.00010999,2]
[335576994,1724338233531,-691.55066972,0.00010999,2]
[335576995,1724338233540,-500.0,0.00010999,2]
[335576996,1724338233550,-500.0,0.00010999,2]
[335576997,1724338233559,-500.0,0.00010999,2]
[335576998,1724338233568,-500.0,0.00010999,2]
[335576999,1724338233581,-500.0,0.00010999,2]
[335577000,1724338233590,-500.0,0.00010999,2]
[335577001,1724338233600,-500.0,0.00010999,2]
[335577002,1724338233610,-500.0,0.00010999,2]
[335577003,1724338233621,-500.0,0.00010999,2]
[335577004,1724338233630,-500.0,0.00010999,2]
[335577005,1724338233639,-500.0,0.00010999,2]
[335577006,1724338233649,-500.0,0.00010999,2]
[335577007,1724338233660,-500.0,0.00010999,2]
[335577008,1724338233671,-500.0,0.00010999,2]
[335577009,1724338233680,-500.0,0.00010999,2]
[335577010,1724338233690,-500.0,0.00010999,2]
[335577011,1724338233699,-334.76,0.00010999,2]
[335577012,1724338233709,-500.0,0.00010999,2]
[335577013,1724338233719,-500.0,0.00010999,2]
[335577014,1724338233728,-500.0,0.00010999,2]
[335577015,1724338233737,-500.0,0.00010999,2]
[335577016,1724338233747,-500.0,0.00010999,2]
[335577017,1724338233756,-500.0,0.00010999,2]
[335577018,1724338233766,-500.0,0.00010999,2]
[335577019,1724338233776,-500.0,0.00010999,2]
[335577020,1724338233786,-500.0,0.00010999,2]
[335577021,1724338233795,-500.0,0.00010999,2]
[335577022,1724338233805,-500.0,0.00010999,2]
[335577023,1724338233814,-500.0,0.00010999,2]
[335577024,1724338233824,-500.0,0.00010999,2]
[335577025,1724338233833,-500.0,0.00010999,2]
[335577026,1724338233843,-500.0,0.00010999,2]
[335577027,1724338233852,-500.0,0.00010999,2]
[335577028,1724338233861,-500.0,0.00010999,2]
[335577029,1724338233871,-500.0,0.00010999,2]
[335577030,1724338233880,-500.0,0.00010999,2]
[335577031,1724338233889,-500.0,0.00010999,2]
[335577032,1724338233898,-500.0,0.00010999,2]
[335577033,1724338233908,-500.0,0.00010999,2]
[335577034,1724338233918,-475.38,0.00010999,2]
[335577035,1724338233928,-500.0,0.00010999,2]
[335577036,1724338233937,-500.0,0.00010999,2]
[335577037,1724338233947,-500.0,0.00010999,2]
[335577038,1724338233956,-500.0,0.00010999,2]
[335577039,1724338233965,-500.0,0.00010999,2]
[335577040,1724338233974,-500.0,0.00010999,2]
[335577041,1724338233983,-500.0,0.00010999,2]
[335577042,1724338233992,-500.0,0.00010999,2]
[335577043,1724338234001,-500.0,0.00010999,2]
[335577044,1724338234010,-274.48184865,0.00010999,2]
[335577045,1724338234026,-170.68815135,0.00010999,2]
[335577046,1724338234035,-418.29711552,0.00010999,2]
[335577047,1724338234064,-81.70288448,0.00010999,2]
[335577048,1724338234073,-500.0,0.00010999,2]
[335577049,1724338234082,-500.0,0.00010999,2]
[335577050,1724338234092,-500.0,0.00010999,2]
[335577051,1724338234101,-500.0,0.00010999,2]
[335577052,1724338234111,-500.0,0.00010999,2]
[335577053,1724338234120,-297.77661552,0.00010999,2]
[335577054,1724338234131,-202.22338448,0.00010999,2]
[335577055,1724338234140,-500.0,0.00010999,2]
[335577056,1724338234149,-85.50198661,0.00010999,2]
[335577057,1724338234161,-414.49801339,0.00010999,2]
[335577058,1724338234170,-205.08,0.00010999,2]
[335577059,1724338234180,-133.51602272,0.00010999,2]
[335577060,1724338234191,-366.48397728,0.00010999,2]
[335577061,1724338234200,-458.00962441,0.00010999,2]
[335577062,1724338234219,-41.99037559,0.00010999,2]
[335577063,1724338234228,-261.27962441,0.00010999,2]
[335577064,1724338234240,-238.72037559,0.00010999,2]
[335577065,1724338234249,-206.3824861,0.00010999,2]
[335577073,1724338237433,-179.6206339,0.00010861,2]
[335577074,1724338237443,-158.62,0.000109,2]
[335577075,1724338237452,-155.32366406,0.00010949,2]
[335577076,1724338237461,-323.00183962,0.00010998,2]
[335577077,1724338237471,-293.6175139,0.00010999,2]
[335577078,1724338237480,-500.0,0.00010999,2]
[335577079,1724338237489,-500.0,0.00010999,2]
[335577080,1724338237498,-318.16,0.00010999,2]
[335577081,1724338237508,-500.0,0.00010999,2]
[335577082,1724338237517,-500.0,0.00010999,2]
[335577083,1724338237526,-500.0,0.00010999,2]